Workbook

Sheet Tabelle1
B1: SVG-Rechner 3.0, Stand 8.8.2025 | F1: © Advokatur Kunz | I1: http://www.kunzrecht.ch
B3: Mandat:
B6: Geschwindigkeiten und Distanzen
B8: km/h | C8: 10 | D8: 20 | E8: 30 | F8: 80 | G8: 20 | H8: 30 | I8: =I9*3.6 -> 15.84 | J8: =J9*3.6 -> 15.84 | K8: 15.84
B9: m/s | C9: =C8/3.6 -> 2.8 | D9: 5.6 | E9: 8.3 | F9: 22.2 | G9: 5.6 | H9: 8.3 | I9: =I10/I11 -> 4.4 | J9: =J10/J11 -> 4.4 | K9: 4.4
B10: m | C10: 10 | D10: 20 | E10: 30 | F10: =F11*F9 -> 0 | G10: =G11*G9 -> 27.77777778 | H10: 41.66666667 | I10: 22 | J10: 22 | K10: 22
B11: s | C11: =C10/C9 -> 3.6 | D11: 3.6 | E11: 3.6 | F11: 0 | G11: 5 | H11: 5 | I11: 5 | J11: 5 | K11: 5
B13: Verzögerung, Bremsweg und Bremszeit
B15: -m/s2 bis 0 | C15: =C9^2/(2*C10) -> 0.3858024691 | D15: 0.7716049383 | E15: 1.157407407 | F15: 9.81 | G15: 1 | H15: 1 | I15: =I9^2/(2*I10) -> 0.44 | J15: =J9^2/(2*J10) -> 0.44 | K15: =K9^2/(2*K10) -> 0.44
B16: Reaktion s | C16: 0.5 | D16: 0.5 | E16: 0.5 | F16: 0.5 | G16: 0.5 | H16: 0.5 | I16: 0.5 | J16: 0.5 | K16: 0.5
B17: Bremsweg | C17: =(C9^2)/(2*C15)+(C16*C9) -> 11.39 | D17: =(D9^2)/(2*D15)+(D16*D9) -> 22.78 | E17: 34.17 | F17: 36.28 | G17: 18.21 | H17: 38.89 | I17: 24.20 | J17: 24.20 | K17: 24.20
B18: Bremszeit | C18: =SQRT(2*C17/C15)+C16 -> 8.18 | D18: =SQRT(2*D17/D15) -> 7.68 | E18: 7.68 | F18: 2.72 | G18: 6.03 | H18: 8.82 | I18: 10.49 | J18: 10.49 | K18: 10.49
B20: Beschleunigung
B22: 4.5 | C22: 10 | D22: =0.5*D24*D23^2 -> 10.0302345 | E22: Strecke m
B23: 3 | C23: =SQRT(2*C22/C24) -> 1.43 | D23: 1.43 | E23: Zeit s
B24: =2*B22/B23^2 -> 1 | C24: 9.81 | D24: 9.81 | E24: m/s2
B25: =B24*B23 -> 3 | C25: =C24*C23 -> 14.01 | D25: =D24*D23 -> 14.03 | E25: m/s
B26: =B25*3.6 -> 10.8 | C26: =C25*3.6 -> 50.43 | D26: =D25*3.6 -> 50.50 | E26: km/h
B28: Legende
C30: Eingabe nötig - eingefüllte Zahlen sind Beispielwerte
C31: Ergebnis
